[Event "Titled Tuesday Blitz March 01 Late 2022"]
[White "Srebrnic, Marko"]
[Black "Bellissimo, Joseph F."]
[WhiteFideId "14603616"]
[BlackFideId "2609843"]
[WhiteElo "2340"]
[BlackElo "2061"]
[Result "0-1"]
[Round "03"]
[TimeControl "180+1"]
[Date "2022.03.02"]
[WhiteClock "0:00:04"]
[BlackClock "0:00:13"]

1. e4 {[%clk 0:03:00]}  e6 {[%clk 0:03:00]} 2. d4 {[%clk 0:02:59]}  d5 {[%clk 0:03:00]} 3. Nc3 {[%clk 0:02:59]}  Nf6 {[%clk 0:03:01]} 4. Bg5 {[%clk 0:02:59]}  dxe4 {[%clk 0:03:01]} 5. Nxe4 {[%clk 0:02:59]}  Be7 {[%clk 0:03:01]} 6. Nxf6+ {[%clk 0:02:52]}  Bxf6 {[%clk 0:03:01]} 7. Bxf6 {[%clk 0:02:52]}  Qxf6 {[%clk 0:03:02]} 8. Nf3 {[%clk 0:02:48]}  Nc6 {[%clk 0:03:02]} 9. Bb5 {[%clk 0:02:34]}  Bd7 {[%clk 0:03:02]} 10. O-O {[%clk 0:02:33]}  O-O-O {[%clk 0:03:01]} 11. c3 {[%clk 0:02:25]}  g5 {[%clk 0:02:55]} 12. Re1 {[%clk 0:02:20]}  h5 {[%clk 0:02:38]} 13. Bxc6 {[%clk 0:02:18]}  Bxc6 {[%clk 0:02:37]} 14. Ne5 {[%clk 0:02:18]}  Be8 {[%clk 0:02:35]} 15. a4 {[%clk 0:02:00]}  Qg7 {[%clk 0:02:30]} 16. a5 {[%clk 0:01:58]}  f6 {[%clk 0:02:26]} 17. Nd3 {[%clk 0:01:57]}  e5 {[%clk 0:02:17]} 18. a6 {[%clk 0:01:53]}  b6 {[%clk 0:02:14]} 19. Qf3 {[%clk 0:01:45]}  c6 {[%clk 0:02:08]} 20. dxe5 {[%clk 0:01:42]}  g4 {[%clk 0:02:09]} 21. Qf5+ {[%clk 0:01:29]}  Kb8 {[%clk 0:02:05]} 22. exf6 {[%clk 0:01:29]}  Qc7 {[%clk 0:02:00]} 23. Re7 {[%clk 0:01:26]}  Bd7 {[%clk 0:01:57]} 24. Qe5 {[%clk 0:01:25]}  Rhf8 {[%clk 0:01:53]} 25. f7 {[%clk 0:01:16]}  h4 {[%clk 0:01:31]} 26. b4 {[%clk 0:01:08]}  h3 {[%clk 0:01:28]} 27. g3 {[%clk 0:00:48]}  Kc8 {[%clk 0:01:15]} 28. c4 {[%clk 0:00:40]}  c5 {[%clk 0:00:52]} 29. Qxc7+ {[%clk 0:00:18]}  Kxc7 {[%clk 0:00:53]} 30. bxc5 {[%clk 0:00:18]}  bxc5 {[%clk 0:00:54]} 31. Rae1 {[%clk 0:00:11]}  Kd6 {[%clk 0:00:50]} 32. Nf4 {[%clk 0:00:09]}  Bf5 {[%clk 0:00:45]} 33. f3 {[%clk 0:00:06]}  gxf3 {[%clk 0:00:43]} 34. Kf2 {[%clk 0:00:06]}  Kc6 {[%clk 0:00:41]} 35. Kxf3 {[%clk 0:00:05]}  Rb8 {[%clk 0:00:33]} 36. Nd5 {[%clk 0:00:04]}  Rb3+ {[%clk 0:00:33]} 37. R1e3 {[%clk 0:00:05]}  Rb1 {[%clk 0:00:25]} 38. Rxa7 {[%clk 0:00:02]}  Rf1+ {[%clk 0:00:22]} 39. Ke2 {[%clk 0:00:03]}  Rh1 {[%clk 0:00:20]} 40. Rc7+ {[%clk 0:00:03]}  Kd6 {[%clk 0:00:19]} 41. a7 {[%clk 0:00:03]}  Rxh2+ {[%clk 0:00:19]} 42. Ke1 {[%clk 0:00:04]}  Rh1+ {[%clk 0:00:16]} 43. Kf2 {[%clk 0:00:03]}  h2 {[%clk 0:00:16]} 44. Kg2 {[%clk 0:00:03]}  Rf1 {[%clk 0:00:13]} 45. Kxh2 {[%clk 0:00:03]}  Rh8+ {[%clk 0:00:13]} 46. Kg2 {[%clk 0:00:03]}  Rhh1 {[%clk 0:00:13]} 47. Re6+ {[%clk 0:00:02]}  Bxe6 {[%clk 0:00:13]} 48. f8=Q+ {[%clk 0:00:01]}  Rxf8 {[%clk 0:00:11]} 49. Kxh1 {[%clk 0:00:02]}  Bxd5+ {[%clk 0:00:12]} 50. cxd5 {[%clk 0:00:03]}  Kxc7 {[%clk 0:00:12]} 51. d6+ {[%clk 0:00:03]}  Kxd6 {[%clk 0:00:13]} 52. g4 {[%clk 0:00:04]}  Ra8 {[%clk 0:00:13]} 0-1


[Site "https://www.chess.com"]

[Event "Titled Tuesday Blitz March 01 Late 2022"]
[White "Suder, Jakub"]
[Black "Nakamura, Hikaru"]
[WhiteFideId "1195310"]
[BlackFideId "2016192"]
[WhiteElo "2058"]
[BlackElo "2850"]
[Result "0-1"]
[Round "03"]
[TimeControl "180+1"]
[Date "2022.03.01"]
[WhiteClock "0:00:23"]
[BlackClock "0:01:54"]

1. d4 {[%clk 0:03:00]}  g6 {[%clk 0:02:59]} 2. c4 {[%clk 0:03:00]}  Bg7 {[%clk 0:02:59]} 3. Nc3 {[%clk 0:03:00]}  c5 {[%clk 0:02:57]} 4. d5 {[%clk 0:03:00]}  Bxc3+ {[%clk 0:02:58]} 5. bxc3 {[%clk 0:03:01]}  f5 {[%clk 0:02:59]} 6. e4 {[%clk 0:03:01]}  fxe4 {[%clk 0:02:58]} 7. f3 {[%clk 0:03:01]}  Qa5 {[%clk 0:02:59]} 8. Qc2 {[%clk 0:02:59]}  d6 {[%clk 0:02:59]} 9. fxe4 {[%clk 0:02:57]}  Nf6 {[%clk 0:03:00]} 10. Bd3 {[%clk 0:02:54]}  e5 {[%clk 0:02:49]} 11. dxe6 {[%clk 0:02:50]}  Bxe6 {[%clk 0:02:49]} 12. Nf3 {[%clk 0:02:51]}  Nc6 {[%clk 0:02:49]} 13. O-O {[%clk 0:02:30]}  Nd7 {[%clk 0:02:48]} 14. Ng5 {[%clk 0:02:11]}  Bg8 {[%clk 0:02:48]} 15. e5 {[%clk 0:01:44]}  Ndxe5 {[%clk 0:02:45]} 16. Bf4 {[%clk 0:01:31]}  O-O-O {[%clk 0:02:45]} 17. Be4 {[%clk 0:01:25]}  Bxc4 {[%clk 0:02:44]} 18. Rfb1 {[%clk 0:01:21]}  d5 {[%clk 0:02:41]} 19. Bf5+ {[%clk 0:01:09]}  gxf5 {[%clk 0:02:30]} 20. Qxf5+ {[%clk 0:01:10]}  Rd7 {[%clk 0:02:27]} 21. Bxe5 {[%clk 0:01:07]}  Nxe5 {[%clk 0:02:09]} 22. Qxe5 {[%clk 0:01:04]}  Rg8 {[%clk 0:02:07]} 23. Rb2 {[%clk 0:00:40]}  Qc7 {[%clk 0:02:03]} 24. Qe3 {[%clk 0:00:33]}  Re7 {[%clk 0:01:57]} 25. Qd2 {[%clk 0:00:28]}  Qe5 {[%clk 0:01:54]} 26. Nf3 {[%clk 0:00:25]}  Qe3+ {[%clk 0:01:54]} 27. Qxe3 {[%clk 0:00:25]}  Rxe3 {[%clk 0:01:55]} 28. Rab1 {[%clk 0:00:25]}  Rxf3 {[%clk 0:01:53]} 29. Rxb7 {[%clk 0:00:23]}  Rf1+ {[%clk 0:01:53]} 30. Rxf1 {[%clk 0:00:23]}  Kxb7 {[%clk 0:01:54]} 31. Rf7+ {[%clk 0:00:23]}  Kb6 {[%clk 0:01:53]} 32. Rxh7 {[%clk 0:00:23]}  Bxa2 {[%clk 0:01:54]} 0-1


[Site "https://www.chess.com"]

[Event "Titled Tuesday Blitz March 01 Late 2022"]
[White "Svane, Rasmus"]
[Black "Pinheiro, Iung Alicio de O."]
[WhiteFideId "4657101"]
[BlackFideId "2104350"]
[WhiteElo "2645"]
[BlackElo "2518"]
[Result "1-0"]
[Round "03"]
[TimeControl "180+1"]
[Date "2022.03.02"]
[WhiteClock "0:00:08"]
[BlackClock "0:00:02"]

1. Nf3 {[%clk 0:03:00]}  c5 {[%clk 0:02:59]} 2. c4 {[%clk 0:03:01]}  g6 {[%clk 0:02:58]} 3. d4 {[%clk 0:03:00]}  cxd4 {[%clk 0:02:57]} 4. Nxd4 {[%clk 0:03:01]}  Nc6 {[%clk 0:02:58]} 5. e4 {[%clk 0:03:01]}  Nf6 {[%clk 0:02:58]} 6. Nc3 {[%clk 0:03:01]}  d6 {[%clk 0:02:58]} 7. f3 {[%clk 0:03:01]}  Nxd4 {[%clk 0:02:57]} 8. Qxd4 {[%clk 0:03:02]}  Bg7 {[%clk 0:02:58]} 9. Be3 {[%clk 0:03:03]}  O-O {[%clk 0:02:58]} 10. Qd2 {[%clk 0:03:03]}  a5 {[%clk 0:02:59]} 11. Be2 {[%clk 0:03:01]}  a4 {[%clk 0:02:58]} 12. Kf2 {[%clk 0:03:02]}  Be6 {[%clk 0:02:58]} 13. h4 {[%clk 0:02:49]}  Qa5 {[%clk 0:02:54]} 14. Nb5 {[%clk 0:02:05]}  Rfc8 {[%clk 0:02:41]} 15. Qxa5 {[%clk 0:02:02]}  Rxa5 {[%clk 0:02:42]} 16. Rac1 {[%clk 0:01:59]}  Raa8 {[%clk 0:02:39]} 17. Rc2 {[%clk 0:01:59]}  Nd7 {[%clk 0:02:27]} 18. Rhc1 {[%clk 0:01:57]}  Nc5 {[%clk 0:02:24]} 19. Nc3 {[%clk 0:01:49]}  f5 {[%clk 0:02:08]} 20. exf5 {[%clk 0:01:37]}  Bxf5 {[%clk 0:02:07]} 21. Rd2 {[%clk 0:01:38]}  Be6 {[%clk 0:01:45]} 22. Ke1 {[%clk 0:01:00]}  a3 {[%clk 0:01:22]} 23. b4 {[%clk 0:00:54]}  Nb3 {[%clk 0:01:16]} 24. axb3 {[%clk 0:00:51]}  Bxc3 {[%clk 0:01:13]} 25. Rxc3 {[%clk 0:00:52]}  a2 {[%clk 0:01:13]} 26. Rxa2 {[%clk 0:00:49]}  Rxa2 {[%clk 0:01:13]} 27. b5 {[%clk 0:00:38]}  Rca8 {[%clk 0:01:03]} 28. Bd4 {[%clk 0:00:32]}  Kf7 {[%clk 0:00:57]} 29. Re3 {[%clk 0:00:32]}  Rc2 {[%clk 0:00:56]} 30. Rc3 {[%clk 0:00:09]}  Ra1+ {[%clk 0:00:42]} 31. Kf2 {[%clk 0:00:09]}  Rd2 {[%clk 0:00:42]} 32. Be3 {[%clk 0:00:08]}  Rb2 {[%clk 0:00:42]} 33. Bd4 {[%clk 0:00:08]}  Raa2 {[%clk 0:00:41]} 34. Re3 {[%clk 0:00:08]}  Rd2 {[%clk 0:00:41]} 35. Bc3 {[%clk 0:00:08]}  Rdc2 {[%clk 0:00:41]} 36. Bd4 {[%clk 0:00:08]}  Bd7 {[%clk 0:00:37]} 37. Ke1 {[%clk 0:00:07]}  e5 {[%clk 0:00:36]} 38. Bb6 {[%clk 0:00:07]}  Bf5 {[%clk 0:00:30]} 39. Bc7 {[%clk 0:00:07]}  Ke7 {[%clk 0:00:28]} 40. b6 {[%clk 0:00:07]}  Rd2 {[%clk 0:00:20]} 41. g4 {[%clk 0:00:07]}  Be6 {[%clk 0:00:19]} 42. c5 {[%clk 0:00:06]}  dxc5 {[%clk 0:00:18]} 43. Rxe5 {[%clk 0:00:07]}  Kd7 {[%clk 0:00:18]} 44. Bb5+ {[%clk 0:00:07]}  Ke7 {[%clk 0:00:15]} 45. Bc4 {[%clk 0:00:07]}  Rdb2 {[%clk 0:00:13]} 46. Rxe6+ {[%clk 0:00:07]}  Kd7 {[%clk 0:00:12]} 47. Re2 {[%clk 0:00:07]}  Rb1+ {[%clk 0:00:11]} 48. Kf2 {[%clk 0:00:07]}  Rxe2+ {[%clk 0:00:11]} 49. Kxe2 {[%clk 0:00:08]}  Rb2+ {[%clk 0:00:12]} 50. Ke3 {[%clk 0:00:09]}  Rc2 {[%clk 0:00:11]} 51. Kf4 {[%clk 0:00:09]}  Rd2 {[%clk 0:00:09]} 52. Kg5 {[%clk 0:00:09]}  Rd4 {[%clk 0:00:09]} 53. Kh6 {[%clk 0:00:09]}  Ke7 {[%clk 0:00:09]} 54. Kxh7 {[%clk 0:00:09]}  Kf6 {[%clk 0:00:07]} 55. g5+ {[%clk 0:00:08]}  Kf5 {[%clk 0:00:07]} 56. Bf7 {[%clk 0:00:08]}  Rd7 {[%clk 0:00:06]} 57. Kg7 {[%clk 0:00:09]}  c4 {[%clk 0:00:05]} 58. bxc4 {[%clk 0:00:09]}  Re7 {[%clk 0:00:05]} 59. c5 {[%clk 0:00:09]}  Rd7 {[%clk 0:00:05]} 60. Kf8 {[%clk 0:00:07]}  Rd3 {[%clk 0:00:04]} 61. Be8 {[%clk 0:00:07]}  Rc3 {[%clk 0:00:03]} 62. c6 {[%clk 0:00:08]}  bxc6 {[%clk 0:00:03]} 63. b7 {[%clk 0:00:08]}  Rb3 {[%clk 0:00:02]} 64. Bd7# {[%clk 0:00:08]} 1-0


[Site "https://www.chess.com"]

[Event "Titled Tuesday Blitz March 01 Late 2022"]
[White "Thavandiran, Shiyam"]
[Black "Sarana, Alexey"]
[WhiteFideId "2605058"]
[BlackFideId "24133795"]
[WhiteElo "2357"]
[BlackElo "2665"]
[Result "0-1"]
[Round "03"]
[TimeControl "180+1"]
[Date "2022.03.01"]
[WhiteClock "0:00:03"]
[BlackClock "0:00:11"]

1. e4 {[%clk 0:03:00]}  c5 {[%clk 0:03:00]} 2. Nf3 {[%clk 0:03:01]}  d6 {[%clk 0:03:01]} 3. d4 {[%clk 0:03:02]}  cxd4 {[%clk 0:03:02]} 4. Nxd4 {[%clk 0:03:02]}  Nf6 {[%clk 0:03:02]} 5. Nc3 {[%clk 0:03:03]}  a6 {[%clk 0:03:03]} 6. h3 {[%clk 0:03:03]}  e5 {[%clk 0:03:02]} 7. Nde2 {[%clk 0:03:03]}  b5 {[%clk 0:03:02]} 8. g4 {[%clk 0:02:58]}  b4 {[%clk 0:03:02]} 9. Nd5 {[%clk 0:02:58]}  Nxd5 {[%clk 0:03:02]} 10. Qxd5 {[%clk 0:02:58]}  Ra7 {[%clk 0:03:03]} 11. Be3 {[%clk 0:02:53]}  Be6 {[%clk 0:03:03]} 12. Qd2 {[%clk 0:02:47]}  Rd7 {[%clk 0:03:03]} 13. Bg2 {[%clk 0:02:46]}  d5 {[%clk 0:03:03]} 14. exd5 {[%clk 0:02:29]}  Bxd5 {[%clk 0:03:04]} 15. Bxd5 {[%clk 0:02:30]}  Rxd5 {[%clk 0:03:03]} 16. Qc1 {[%clk 0:02:30]}  Be7 {[%clk 0:03:02]} 17. Ng3 {[%clk 0:02:24]}  O-O {[%clk 0:02:59]} 18. O-O {[%clk 0:02:23]}  Nc6 {[%clk 0:02:57]} 19. c3 {[%clk 0:02:22]}  bxc3 {[%clk 0:02:56]} 20. bxc3 {[%clk 0:02:23]}  Bc5 {[%clk 0:02:51]} 21. Bxc5 {[%clk 0:02:11]}  Rxc5 {[%clk 0:02:51]} 22. Qe3 {[%clk 0:02:12]}  Rc4 {[%clk 0:02:50]} 23. Rfd1 {[%clk 0:02:09]}  Qc7 {[%clk 0:02:49]} 24. Rd5 {[%clk 0:01:58]}  Ne7 {[%clk 0:02:40]} 25. Rxe5 {[%clk 0:01:56]}  Ng6 {[%clk 0:02:40]} 26. Re8 {[%clk 0:01:51]}  Rxc3 {[%clk 0:02:38]} 27. Rxf8+ {[%clk 0:01:51]}  Nxf8 {[%clk 0:02:39]} 28. Qe2 {[%clk 0:01:32]}  Ne6 {[%clk 0:02:36]} 29. Rd1 {[%clk 0:01:02]}  g6 {[%clk 0:02:26]} 30. Rd3 {[%clk 0:00:49]}  Rc1+ {[%clk 0:02:14]} 31. Kh2 {[%clk 0:00:49]}  h6 {[%clk 0:01:34]} 32. Qe3 {[%clk 0:00:46]}  Kh7 {[%clk 0:01:09]} 33. Rd7 {[%clk 0:00:42]}  Qxd7 {[%clk 0:01:06]} 34. Qxc1 {[%clk 0:00:42]}  Qd5 {[%clk 0:01:01]} 35. a4 {[%clk 0:00:24]}  Nd4 {[%clk 0:00:59]} 36. h4 {[%clk 0:00:19]}  Nf3+ {[%clk 0:00:57]} 37. Kh3 {[%clk 0:00:20]}  Qe6 {[%clk 0:00:25]} 38. Qf4 {[%clk 0:00:18]}  Ne5 {[%clk 0:00:23]} 39. f3 {[%clk 0:00:15]}  Nd3 {[%clk 0:00:18]} 40. Qd2 {[%clk 0:00:08]}  Qc4 {[%clk 0:00:13]} 41. Ne4 {[%clk 0:00:07]}  Qd4 {[%clk 0:00:14]} 42. Kg3 {[%clk 0:00:06]}  Qe5+ {[%clk 0:00:14]} 43. Kh3 {[%clk 0:00:05]}  Nf4+ {[%clk 0:00:14]} 44. Kh2 {[%clk 0:00:06]}  Nd5+ {[%clk 0:00:11]} 45. Kh3 {[%clk 0:00:06]}  Kg7 {[%clk 0:00:11]} 46. g5 {[%clk 0:00:05]}  h5 {[%clk 0:00:11]} 47. a5 {[%clk 0:00:04]}  Nf4+ {[%clk 0:00:11]} 48. Kh2 {[%clk 0:00:04]}  Nd5+ {[%clk 0:00:10]} 49. Kh3 {[%clk 0:00:05]}  Kf8 {[%clk 0:00:09]} 50. Qc1 {[%clk 0:00:04]}  Nf4+ {[%clk 0:00:09]} 51. Kh2 {[%clk 0:00:04]}  Nd3+ {[%clk 0:00:09]} 52. f4 {[%clk 0:00:04]}  Qxe4 {[%clk 0:00:10]} 53. Qc8+ {[%clk 0:00:03]}  Kg7 {[%clk 0:00:10]} 54. Qc3+ {[%clk 0:00:03]}  Kh7 {[%clk 0:00:11]} 0-1


[Site "https://www.chess.com"]

[Event "Titled Tuesday Blitz March 01 Late 2022"]
[White "Tomb, Maroun"]
[Black "Kozak, Adam"]
[WhiteFideId "5300398"]
[BlackFideId "753246"]
[WhiteElo "2556"]
[BlackElo "2459"]
[Result "1-0"]
[Round "03"]
[TimeControl "180+1"]
[Date "2022.03.01"]
[WhiteClock "0:01:13"]
[BlackClock "0:02:21"]

1. e4 {[%clk 0:03:00]}  c5 {[%clk 0:02:59]} 2. Ne2 {[%clk 0:03:00]}  a6 {[%clk 0:02:58]} 3. c4 {[%clk 0:02:59]}  e6 {[%clk 0:02:58]} 4. Nbc3 {[%clk 0:02:59]}  Qc7 {[%clk 0:02:58]} 5. d4 {[%clk 0:02:50]}  cxd4 {[%clk 0:02:57]} 6. Nxd4 {[%clk 0:02:51]}  Nf6 {[%clk 0:02:57]} 7. f3 {[%clk 0:02:45]}  Bb4 {[%clk 0:02:56]} 8. Be3 {[%clk 0:02:35]}  d6 {[%clk 0:02:56]} 9. Be2 {[%clk 0:02:32]}  Bxc3+ {[%clk 0:02:55]} 10. bxc3 {[%clk 0:02:32]}  Nbd7 {[%clk 0:02:56]} 11. O-O {[%clk 0:02:29]}  O-O {[%clk 0:02:55]} 12. Rb1 {[%clk 0:02:19]}  b6 {[%clk 0:02:54]} 13. g4 {[%clk 0:02:07]}  Nc5 {[%clk 0:02:49]} 14. g5 {[%clk 0:01:54]}  Nfd7 {[%clk 0:02:48]} 15. Qe1 {[%clk 0:01:48]}  Bb7 {[%clk 0:02:44]} 16. h4 {[%clk 0:01:43]}  d5 {[%clk 0:02:40]} 17. cxd5 {[%clk 0:01:40]}  exd5 {[%clk 0:02:39]} 18. exd5 {[%clk 0:01:38]}  Rfe8 {[%clk 0:02:38]} 19. Qd2 {[%clk 0:01:21]}  Qg3+ {[%clk 0:02:37]} 20. Kh1 {[%clk 0:01:21]}  Qh3+ {[%clk 0:02:28]} 21. Kg1 {[%clk 0:01:21]}  Qg3+ {[%clk 0:02:29]} 22. Kh1 {[%clk 0:01:21]}  Qxh4+ {[%clk 0:02:29]} 23. Kg2 {[%clk 0:01:21]}  Bxd5 {[%clk 0:02:30]} 24. Rh1 {[%clk 0:01:15]}  Qg4+ {[%clk 0:02:30]} 25. Kf2 {[%clk 0:01:16]}  Qf5 {[%clk 0:02:29]} 26. Nxf5 {[%clk 0:01:15]}  Re5 {[%clk 0:02:22]} 27. Qxd5 {[%clk 0:01:13]}  Rxd5 {[%clk 0:02:21]} 28. Ne7+ {[%clk 0:01:13]} 1-0


[Site "https://www.chess.com"]

[Event "Titled Tuesday Blitz March 01 Late 2022"]
[White "Van Foreest, Jorden"]
[Black "Jacobson, Aaron"]
[WhiteFideId "1039784"]
[BlackFideId "2089912"]
[WhiteElo "2609"]
[BlackElo "2265"]
[Result "1-0"]
[Round "03"]
[TimeControl "180+1"]
[Date "2022.03.02"]
[WhiteClock "0:01:49"]
[BlackClock "0:00:10"]

1. Nf3 {[%clk 0:03:00]}  d5 {[%clk 0:02:58]} 2. b3 {[%clk 0:03:01]}  Nc6 {[%clk 0:02:58]} 3. Bb2 {[%clk 0:03:02]}  Bg4 {[%clk 0:02:59]} 4. d4 {[%clk 0:02:57]}  e6 {[%clk 0:02:59]} 5. e3 {[%clk 0:02:56]}  Nf6 {[%clk 0:02:56]} 6. c4 {[%clk 0:02:54]}  Bf5 {[%clk 0:02:56]} 7. Be2 {[%clk 0:02:52]}  Nb4 {[%clk 0:02:56]} 8. Na3 {[%clk 0:02:49]}  h6 {[%clk 0:02:50]} 9. O-O {[%clk 0:02:48]}  Be7 {[%clk 0:02:45]} 10. c5 {[%clk 0:02:43]}  O-O {[%clk 0:02:41]} 11. Bc3 {[%clk 0:02:42]}  a5 {[%clk 0:02:38]} 12. Bxb4 {[%clk 0:02:40]}  axb4 {[%clk 0:02:38]} 13. Nc2 {[%clk 0:02:41]}  b6 {[%clk 0:02:35]} 14. Nxb4 {[%clk 0:02:33]}  bxc5 {[%clk 0:02:30]} 15. Nc6 {[%clk 0:02:29]}  Qd6 {[%clk 0:02:28]} 16. Nxe7+ {[%clk 0:02:27]}  Qxe7 {[%clk 0:02:29]} 17. dxc5 {[%clk 0:02:26]}  Qxc5 {[%clk 0:02:29]} 18. Qd4 {[%clk 0:02:27]}  Qd6 {[%clk 0:01:58]} 19. Rfc1 {[%clk 0:02:24]}  Nd7 {[%clk 0:01:58]} 20. b4 {[%clk 0:02:22]}  Ra4 {[%clk 0:01:51]} 21. a3 {[%clk 0:02:22]}  Rfa8 {[%clk 0:01:51]} 22. Qb2 {[%clk 0:02:22]}  c5 {[%clk 0:01:33]} 23. Bb5 {[%clk 0:02:21]}  R4a7 {[%clk 0:01:34]} 24. Bxd7 {[%clk 0:02:21]}  cxb4 {[%clk 0:01:35]} 25. Bc6 {[%clk 0:02:18]}  bxa3 {[%clk 0:01:35]} 26. Qd4 {[%clk 0:02:17]}  a2 {[%clk 0:00:28]} 27. Bxa8 {[%clk 0:02:14]}  Rxa8 {[%clk 0:00:28]} 28. Nd2 {[%clk 0:02:07]}  Qa3 {[%clk 0:00:25]} 29. h3 {[%clk 0:02:02]}  Bb1 {[%clk 0:00:23]} 30. Qc3 {[%clk 0:01:56]}  Qa7 {[%clk 0:00:14]} 31. Nxb1 {[%clk 0:01:55]}  axb1=Q {[%clk 0:00:15]} 32. Rcxb1 {[%clk 0:01:54]}  d4 {[%clk 0:00:13]} 33. Rxa7 {[%clk 0:01:52]}  Kh7 {[%clk 0:00:14]} 34. Qd3+ {[%clk 0:01:50]}  f5 {[%clk 0:00:14]} 35. Rxa8 {[%clk 0:01:50]}  Kg6 {[%clk 0:00:15]} 36. Qxd4 {[%clk 0:01:50]}  Kh5 {[%clk 0:00:16]} 37. Qxg7 {[%clk 0:01:49]}  e5 {[%clk 0:00:15]} 38. Rf8 {[%clk 0:01:47]}  Kh4 {[%clk 0:00:12]} 39. Rxf5 {[%clk 0:01:48]}  h5 {[%clk 0:00:10]} 40. Qg3# {[%clk 0:01:49]} 1-0


[Site "https://www.chess.com"]

[Event "Titled Tuesday Blitz March 01 Late 2022"]
[White "Vifleemskaia, Svetlana"]
[Black "Erdogdu, Mert"]
[WhiteFideId "4129490"]
[BlackFideId "6301495"]
[WhiteElo "1901"]
[BlackElo "2485"]
[Result "1-0"]
[Round "03"]
[TimeControl "180+1"]
[Date "2022.03.02"]
[WhiteClock "0:00:30"]
[BlackClock "0:00:14"]

1. d4 {[%clk 0:03:00]}  d5 {[%clk 0:02:59]} 2. c4 {[%clk 0:03:01]}  e6 {[%clk 0:02:59]} 3. Nc3 {[%clk 0:02:59]}  c5 {[%clk 0:02:59]} 4. cxd5 {[%clk 0:02:58]}  exd5 {[%clk 0:03:00]} 5. Nf3 {[%clk 0:02:58]}  Nc6 {[%clk 0:03:01]} 6. g3 {[%clk 0:02:57]}  Nf6 {[%clk 0:02:58]} 7. Bg2 {[%clk 0:02:57]}  Be7 {[%clk 0:02:58]} 8. O-O {[%clk 0:02:57]}  O-O {[%clk 0:02:58]} 9. Be3 {[%clk 0:02:57]}  c4 {[%clk 0:02:58]} 10. Bg5 {[%clk 0:02:53]}  h6 {[%clk 0:02:56]} 11. Bxf6 {[%clk 0:02:53]}  Bxf6 {[%clk 0:02:56]} 12. e3 {[%clk 0:02:49]}  Be6 {[%clk 0:02:50]} 13. b3 {[%clk 0:02:48]}  cxb3 {[%clk 0:02:45]} 14. axb3 {[%clk 0:02:43]}  Rc8 {[%clk 0:02:43]} 15. Na4 {[%clk 0:02:42]}  Be7 {[%clk 0:02:40]} 16. Ne5 {[%clk 0:02:32]}  Nxe5 {[%clk 0:02:26]} 17. dxe5 {[%clk 0:02:33]}  Qa5 {[%clk 0:02:26]} 18. Qd4 {[%clk 0:02:20]}  Rc2 {[%clk 0:01:50]} 19. Rfd1 {[%clk 0:02:10]}  Rfc8 {[%clk 0:01:46]} 20. Bxd5 {[%clk 0:02:04]}  Rd8 {[%clk 0:01:36]} 21. e4 {[%clk 0:02:03]}  b5 {[%clk 0:01:26]} 22. Nc5 {[%clk 0:01:22]}  Bxc5 {[%clk 0:00:26]} 23. Rxa5 {[%clk 0:01:21]}  Bxd4 {[%clk 0:00:25]} 24. Rxd4 {[%clk 0:01:21]}  Bh3 {[%clk 0:00:24]} 25. Ra1 {[%clk 0:01:06]}  Rd7 {[%clk 0:00:22]} 26. Rad1 {[%clk 0:00:41]}  Kf8 {[%clk 0:00:22]} 27. R4d2 {[%clk 0:00:38]}  Rxd2 {[%clk 0:00:20]} 28. Rxd2 {[%clk 0:00:38]}  a5 {[%clk 0:00:21]} 29. f3 {[%clk 0:00:36]}  Ra7 {[%clk 0:00:20]} 30. Bc6 {[%clk 0:00:32]}  a4 {[%clk 0:00:16]} 31. Rd8+ {[%clk 0:00:30]}  Ke7 {[%clk 0:00:14]} 32. Re8# {[%clk 0:00:30]} 1-0


[Site "https://www.chess.com"]

[Event "Titled Tuesday Blitz March 01 Late 2022"]
[White "Voit, Daria"]
[Black "Dias, Joao Batista"]
[WhiteFideId "4182146"]
[BlackFideId "2108240"]
[WhiteElo "2323"]
[BlackElo "1898"]
[Result "1/2-1/2"]
[Round "03"]
[TimeControl "180+1"]
[Date "2022.03.02"]
[WhiteClock "0:00:06"]
[BlackClock "0:00:23"]

1. Nf3 {[%clk 0:03:00]}  Nf6 {[%clk 0:02:59]} 2. b3 {[%clk 0:03:00]}  g6 {[%clk 0:02:59]} 3. Bb2 {[%clk 0:03:01]}  Bg7 {[%clk 0:03:00]} 4. g3 {[%clk 0:03:01]}  O-O {[%clk 0:03:01]} 5. Bg2 {[%clk 0:03:02]}  d6 {[%clk 0:03:00]} 6. O-O {[%clk 0:03:01]}  e5 {[%clk 0:03:00]} 7. c4 {[%clk 0:02:59]}  c6 {[%clk 0:03:00]} 8. d4 {[%clk 0:02:59]}  e4 {[%clk 0:02:58]} 9. Nfd2 {[%clk 0:02:57]}  d5 {[%clk 0:02:58]} 10. e3 {[%clk 0:02:54]}  Bg4 {[%clk 0:02:55]} 11. Qc2 {[%clk 0:02:50]}  Be2 {[%clk 0:02:55]} 12. Rc1 {[%clk 0:02:47]}  Bd3 {[%clk 0:02:40]} 13. Qd1 {[%clk 0:02:47]}  Nbd7 {[%clk 0:02:38]} 14. cxd5 {[%clk 0:02:44]}  cxd5 {[%clk 0:02:37]} 15. Bf1 {[%clk 0:02:45]}  Bxf1 {[%clk 0:02:36]} 16. Qxf1 {[%clk 0:02:46]}  Rc8 {[%clk 0:02:36]} 17. Nc3 {[%clk 0:02:45]}  Qb6 {[%clk 0:02:27]} 18. Na4 {[%clk 0:02:25]}  Qe6 {[%clk 0:02:26]} 19. Ba3 {[%clk 0:02:19]}  Rfd8 {[%clk 0:02:23]} 20. Qb5 {[%clk 0:02:17]}  b6 {[%clk 0:02:21]} 21. Qa6 {[%clk 0:02:14]}  Rxc1+ {[%clk 0:02:12]} 22. Rxc1 {[%clk 0:02:14]}  Qh3 {[%clk 0:02:12]} 23. Qxa7 {[%clk 0:02:10]}  Ng4 {[%clk 0:02:12]} 24. Nf1 {[%clk 0:02:10]}  Qh5 {[%clk 0:02:02]} 25. Be7 {[%clk 0:02:04]}  Qf5 {[%clk 0:02:01]} 26. Rc2 {[%clk 0:01:58]}  Re8 {[%clk 0:01:49]} 27. Bb4 {[%clk 0:01:51]}  h5 {[%clk 0:01:47]} 28. h3 {[%clk 0:01:22]}  Ngf6 {[%clk 0:01:41]} 29. Kh2 {[%clk 0:01:20]}  h4 {[%clk 0:01:34]} 30. g4 {[%clk 0:01:03]}  Qf3 {[%clk 0:01:23]} 31. g5 {[%clk 0:00:36]}  Ng4+ {[%clk 0:01:10]} 32. Kg1 {[%clk 0:00:23]}  Qxh3 {[%clk 0:01:09]} 33. Qxd7 {[%clk 0:00:20]}  Qf3 {[%clk 0:01:01]} 34. Qxe8+ {[%clk 0:00:19]}  Kh7 {[%clk 0:01:00]} 35. Nh2 {[%clk 0:00:04]}  Qd1+ {[%clk 0:00:52]} 36. Kg2 {[%clk 0:00:03]}  Nxh2 {[%clk 0:00:46]} 37. Rc8 {[%clk 0:00:03]}  Qf3+ {[%clk 0:00:38]} 38. Kxh2 {[%clk 0:00:04]}  Qxf2+ {[%clk 0:00:38]} 39. Kh1 {[%clk 0:00:04]}  Qf1+ {[%clk 0:00:34]} 40. Kh2 {[%clk 0:00:05]}  Qf2+ {[%clk 0:00:33]} 41. Kh1 {[%clk 0:00:05]}  Qf1+ {[%clk 0:00:31]} 42. Kh2 {[%clk 0:00:06]}  Qf2+ {[%clk 0:00:23]} 1/2-1/2


[Site "https://www.chess.com"]